Cogmind - Beta 10.1 @@@ ROGUE MODE // 2020.10.29 @ 10:03:10 Player: Atherys Result: Destroyed by S-10 Pest with Light Assault Rifle Performance ------------- Evolutions (0) 0 Regions Visited (2) 400 Robots Destroyed (23) 115 Value Destroyed (444) 444 Prototype IDs (0) 0 Alien Tech Used (0) 0 Bonus (0) 0 TOTAL SCORE: 959 Bonus ------- None Cogmind --------- Core Integrity 0/250 Matter 290/300 Energy 156/160 System Corruption 0% Temperature Cool (61) Movement Walking (150) Ox1 Location -10/Mines Parts ------- > --- POWER (1) -------- Light Nuclear Core > --- PROPULSION (2) --- Aluminum Leg Aluminum Leg > --- UTILITY (2) ------ Large Storage Unit Hacking Suite > --- WEAPON (2) ------- Mining Laser > --- INVENTORY (10) --- Ion Engine Flight Unit Flight Unit Improved Heat Sink Large Storage Unit Signal Interpreter Utility Shielding Peak State ------------ > --- POWER ------------ Light Nuclear Core > --- PROPULSION ------- Aluminum Leg Aluminum Leg > --- UTILITY ---------- Large Storage Unit Hacking Suite > --- WEAPON ----------- Particle Gun Light Assault Rifle > --- INVENTORY -------- Ion Engine Flight Unit Flight Unit Improved Heat Sink Large Storage Unit Signal Interpreter Utility Shielding Mining Laser [Rating: 13] Favorites ----------- Power Ion Engine Engine Ion Engine Power Core Light Nuclear Core Propulsion Compact Wheel Leg Aluminum Leg Wheel Compact Wheel Hover Unit Hover Unit Flight Unit Flight Unit Utility Large Storage Unit Storage Large Storage Unit Hackware Hacking Suite Protection Utility Shielding Weapon Light Assault Rifle Energy Gun EM Pulse Gun Energy Cannon Beam Cannon Ballistic Gun Light Assault Rifle Special Weapon Mining Laser Build | -11 -10 -10 ------- Run | Scr Mat Min Slots Evolved . | . . . Power . | . . . Propulsion . | . . . Utility . | . . . Weapon . | . . . Parts Attached 32 | 7 24 1 Power 6 | 1 5 . Engine 5 | 1 4 . Core 1 | . 1 . Reactor . | . . . Propulsion 10 | 2 8 . Treads . | . . . Leg 2 | . 2 . Wheel 5 | 2 3 . Hover 1 | . 1 . Flight 2 | . 2 . Utility 4 | 1 3 . Device . | . . . Storage 2 | 1 1 . Processor . | . . . Hackware 1 | . 1 . Protection 1 | . 1 . Artifact . | . . . Weapon 12 | 3 8 1 Energy Gun 3 | 1 2 . Energy Cannon 1 | . 1 . Ballistic Gun 7 | 2 5 . Ballistic Cannon . | . . . Launcher . | . . . Special Weapon 1 | . . 1 Impact Weapon . | . . . Slashing Weapon . | . . . Piercing Weapon . | . . . Special Melee Weapon . | . . . Unidentified Prototypes . | . . . Parts Lost 9 | . 7 2 Power 2 | . 2 . Propulsion 2 | . 2 . Utility . | . . . Weapon 5 | . 3 2 Highest Loss Streak 4 | . 4 2 Average Slot Usage (%) 83 | . 83 85 Engine 10 | . 11 . Leg 2 | . 1 28 Wheel 15 | . 15 . Flight 2 | . 2 . Storage 14 | . 14 14 Hackware 6 | . 5 14 Protection 5 | . 5 . Energy Gun 7 | . 7 14 Ballistic Gun 16 | . 17 . Naked Turns . | . . . Heaviest Build 26 | 13 26 . Greatest Support 26 | 26 26 . Greatest Overweight (x) 7 | . 7 . Average Overweight (x) . | . . . Largest Inventory Capacity 10 | 6 10 10 Average Capacity 8 | 5 9 10 Most Carried 8 | 2 8 8 Average Carried 4 | 1 4 7 Final Capacity 10 | 6 10 10 Final Carried 8 | 2 8 7 Class Distribution -------------------- 62% | Mutant 37% | Scavenger-Mutant Dominant Class ---------------- Mutant | -10/Materials Scavenger-Mutant | -10/Mines Resources | -11 -10 -10 ----------- Run | Scr Mat Min Matter Collected 632 | 211 421 . Remotely . | . . . Salvage Created 715 | . 700 15 Parts 46 | . 43 3 Haulers Intercepted 1 | . 1 . Recyclers Shooed 1 | . 1 . Parts Field Recycled . | . . . Retrieved Matter . | . . . Parts Self-Destructed . | . . . Prevented . | . . . Kills | -11 -10 -10 ------- Run | Scr Mat Min Combat Hostiles Destroyed 15 | . 14 1 Guns 13 | . 12 1 Cannons 2 | . 2 . Classes Destroyed 7 | . 7 . Worker 1 | . 1 . Hauler 1 | . 1 . Recycler 2 | . 2 . Operator 2 | . 2 . Watcher 2 | . 2 . Swarmer 7 | . 6 1 Grunt 8 | . 8 . Best Kill Streak 5 | . 5 1 Combat Bots Only 5 | . 5 1 Max Kills in Single Turn 1 | . 1 1 Gunslinging . | . . . Exploded . | . . . Melee . | . . . Uniques/NPCs Destroyed . | . . . Combat | -11 -10 -10 -------- Run | Scr Mat Min Damage Taken 890 | . 792 98 Core 251 | . 235 16 Absorbed by Shields . | . . . Core Remaining (%) 100 | 100 . . Volleys Fired 102 | . 99 3 Largest 2 | . 2 2 Hottest 100 | . 80 100 Shots Fired 148 | . 144 4 Gun 143 | . 140 3 Cannon 4 | . 4 . Launcher . | . . . Special 1 | . . 1 Kinetic 113 | . 112 1 Thermal 7 | . 4 3 Explosive . | . . . Electromagnetic 28 | . 28 . Robot Hit Streak 10 | . 10 2 Robot Miss Streak 6 | . 6 1 Penetration Max . | . . . Secondary Targets 1 | . 1 . Max Gunslinging Chain 1 | . 1 . Shots Hit Robots 76 | . 74 2 Core Hits 43 | . 42 1 Critical Hits . | . . . Critical Kills . | . . . Critical Parts Destroyed . | . . . Melee Attacks . | . . . Impact . | . . . Slashing . | . . . Piercing . | . . . Sneak Attacks . | . . . Combat Hostiles . | . . . Follow-up Attacks . | . . . Damage Inflicted 1021 | . 979 42 Guns 818 | . 800 18 Cannons 53 | . 53 . Explosions 126 | . 126 . Melee . | . . . Ramming . | . . . Kinetic 605 | . 605 . Thermal 221 | . 179 42 Explosive . | . . . Electromagnetic 195 | . 195 . Impact . | . . . Slashing . | . . . Piercing . | . . . Highest Corruption . | . . . Average Corruption . | . . . Corruption Purged . | . . . Overload Shots . | . . . Overflow Damage . | . . . Projectiles . | . . . Explosions . | . . . Melee . | . . . Knockbacks . | . . . Impact . | . . . Kinetic . | . . . Secondary . | . . . Self-Inflicted Damage . | . . . Shots . | . . . Rammed . | . . . Targets Rammed . | . . . Kicked . | . . . Crushed . | . . . Highest Temperature 70 | . 70 61 Average Temperature 19 | . 16 45 Received Heat Transfer 222 | . 222 . Siege Activations . | . . . Robots Corrupted . | . . . Combat Hostiles . | . . . Parts Fried . | . . . Impact Corruptions . | . . . Robots Melted . | . . . Combat Hostiles . | . . . Parts Melted . | . . . Heat Transferred 348 | . 261 87 Parts Sabotaged . | . . . Parts Stolen . | . . . Parts Stripped . | . . . Power Chain Reactions 3 | . 3 . Missiles Intercepted . | . . . Alert | -11 -10 -10 ------- Run | Scr Mat Min Peak Influence 239 | . 239 31 Initial 21 | . . 21 Average 112 | . 119 21 Maximum Alert Level 1 | . 1 . Low Security (%) 87 | 100 86 100 Level 1 12 | . 13 . Level 2 . | . . . Level 3 . | . . . Level 4 . | . . . Level 5 . | . . . High Security . | . . . Max Security . | . . . Squads Dispatched 4 | . 4 . Investigation 1 | . 1 . Extermination . | . . . Reinforcement 3 | . 3 . Assault . | . . . Garrison . | . . . Intercept . | . . . Construction Impeded . | . . . Haulers Reinforced . | . . . Stealth | -11 -10 -10 --------- Run | Scr Mat Min Distress Signals 1 | . 1 . Communications Jammed . | . . . Distress Signals . | . . . Times Spotted 36 | . 33 3 Peak Tracking Total 7 | . 7 2 Tactical Retreats . | . . . Traps | -11 -10 -10 ------- Run | Scr Mat Min Traps Triggered 6 | . 6 . Indirectly . | . . . Trap Hack Attempts . | . . . Triggered . | . . . Disarmed . | . . . Reprogrammed . | . . . Reused . | . . . Traps Extracted . | . . . Installed . | . . . Triggered . | . . . Machines | -11 -10 -10 ---------- Run | Scr Mat Min Machines Disabled 1 | . 1 . Max in Single Turn 1 | . 1 . Machines Sabotaged . | . . . Garrisons Compromised . | . . . Overloaded Fab Kills . | . . . Fab Network Shutdowns . | . . . Hacking | -11 -10 -10 --------- Run | Scr Mat Min Machines Accessed 4 | . 4 . Terminals 1 | . 1 . Fabricators . | . . . Repair Stations 1 | . 1 . Recycling Units 2 | . 2 . Scanalyzers . | . . . Garrison Access . | . . . Total Hacks 14 | . 14 . Successful 9 | . 9 . Failed 5 | . 5 . Catastrophic 2 | . 2 . Database Lockouts . | . . . Manual 2 | . 2 . Terminals 2 | . 2 . Fabricators . | . . . Repair Stations 5 | . 5 . Recycling Units 7 | . 7 . Scanalyzers . | . . . Garrison Access . | . . . Terminal Hacks . | . . . Fabricator Hacks . | . . . Repair Station Hacks 4 | . 4 . Scan Component 2 | . 2 . Repair 2 | . 2 . Recycling Unit Hacks 5 | . 5 . Report Inventory 3 | . 3 . Retrieve Components 2 | . 2 . Scanalyzer . | . . . Garrison Access Hacks . | . . . Unauthorized Hacks . | . . . Terminals . | . . . Fabricators . | . . . Repair Stations . | . . . Recycling Units . | . . . Scanalyzers . | . . . Garrison Access . | . . . Data Cores Recovered . | . . . Used . | . . . Hacking Detections 2 | . 2 . Full Trace Events 1 | . 1 . Feedback Events . | . . . Feedback Blocked . | . . . Robot Schematics Acquired . | . . . Robots Built . | . . . Matter . | . . . Time . | . . . Total Robot Build Rating . | . . . Part Schematics Acquired . | . . . Parts Built . | . . . Matter . | . . . Time . | . . . Total Part Build Rating . | . . . Parts Repaired 2 | . 2 . Time 52 | . 52 . Parts Recycled . | . . . Recycled Matter . | . . . Retrieved Matter . | . . . Retrieved Components 3 | . 3 . Parts Scanalyzed . | . . . Part Schematics Acquired . | . . . Parts Damaged . | . . . Bothacking | -11 -10 -10 ------------ Run | Scr Mat Min Used RIF Installer . | . . . Robots Hacked . | . . . Non-combat . | . . . Combat . | . . . Robot Hacks Applied . | . . . Relay Couplers Released . | . . . Robots Rewired . | . . . Allies Hacked . | . . . Hacks Repelled . | . . . Allies | -11 -10 -10 -------- Run | Scr Mat Min Total Allies . | . . . Largest Group . | . . . Highest-Rated Group . | . . . Highest-Rated Ally . | . . . Total Orders . | . . . Ally Attacks . | . . . Total Damage . | . . . Kills . | . . . Allies Corrupted . | . . . Allies Melted . | . . . Intel | -11 -10 -10 ------- Run | Scr Mat Min Robot Analysis Total . | . . . Derelict Logs Recovered . | . . . Drone Launches . | . . . Drone Recoveries . | . . . Exploration | -11 -10 -10 ------------- Run | Scr Mat Min Turns Passed 985 | 54 922 9 Spaces Moved 552 | 50 502 . Core 32 | 7 25 . Treads . | . . . Legs 39 | . 39 . Wheels 445 | 43 402 . Hover 19 | . 19 . Flight 17 | . 17 . Fastest Speed 50 | 50 80 . Average Speed 116 | 83 119 . Slowest Speed 440 | 90 440 . Overloaded Moves . | . . . Propulsion Burnouts . | . . . Robots Hopped . | . . . Cave-ins Triggered . | . . . Exploration Rate (%) 27 | 3 77 3 Regions Visited 2 Branch Regions 1 Pre-discovered Areas . | . . . Known Exits Taken . | . . . Unknown Exits Taken 2 | 1 1 . Scrap Searched . | . . . Spaces Dug . | . . . Terrain Destroyed 9 | . 9 . Melee . | . . . Projectile . | . . . AOE 9 | . 9 . Terrain Rammed . | . . . Walls Destroyed . | . . . Machines Disabled . | . . . Actions | -11 -10 -10 --------- Run | Scr Mat Min Total 752 | 58 690 4 Wait 53 | . 53 . Move 550 | 49 501 . Hop . | . . . Pick Up 11 | 2 9 . Fast Attach 23 | 6 17 . Attach 6 | . 5 1 Detach 3 | . 3 . Swap 3 | 1 2 . Drop 1 | . 1 . Fire 102 | . 99 3 Melee . | . . . Ram . | . . . Kick . | . . . Crush . | . . . Escape Stasis . | . . . Rewire . | . . . Trap . | . . . Miscellaneous . | . . . Route ------- -11/Scrapyard -10/Materials (discovered 4 exits: [*Mat x2] / [*Min x2]) -10/Mines History --------- Turn | Location | Event 12 | -11/Scrapyard | Discovered new exit (range 16) 55 | -11/Scrapyard | Entered Materials 211 | -10/Materials | Discovered new exit (range 8) 239 | -10/Materials | Discovered new exit (range 15) 306 | -10/Materials | Discovered new exit (range 16) 307 | -10/Materials | Build established: Mutant 516 | -10/Materials | Lost 4 parts (1p1n2w) 629 | -10/Materials | Repaired Utility Shielding 656 | -10/Materials | Repaired Ion Engine 670 | -10/Materials | Core integrity fell below 50% 843 | -10/Materials | Discovered new exit (range 15) 884 | -10/Materials | Core integrity fell below 20% 977 | -10/Materials | Entered Mines 986 | -10/Mines | Destroyed by S-10 Pest with Light Assault Rifle Last Messages --------------- 00908_ Acquired Particle Gun. 00914_ Acquired Aluminum Leg. 00916_ Acquired 40 matter. 00919_ Acquired Aluminum Leg. 00921_ Acquired Lgt. Nuclear Core. 00923_ Acquired 17 matter. 00926_ Acquired Imp. Heat Sink. 00927_ Acquired 43 matter. 00927_ K-01 Serf collects debris. 00931_ Acquired 3 matter. 00934_ K-01 Serf collects debris. 00949_ Acquired Mining Laser. 00950_ K-01 Serf collects debris. 00953_ K-01 Serf cleans the Atomic Centrifuge. LOCATION=UNKNOWN GOAL=ESCAPE Something is scanning the area. 00979_ Lgt. Assault Rifle destroyed. 00980_ S-10 Pest destroyed. 00981_ Particle Gun destroyed. Map ----- +----------------------------------------------------+ | ?????????????????????????????? | | ?????????????????????????????? | | ?????????????????????????????? | | ?????????????????????????????? | | ?????????????????????????????? | | ?????????????????????????????? | | ?????????????????????????????? | | ?????????????????????????????? | | ?????????????????????????????? | | ?????????????????????????????? | | ?????????????????????????????? | | ?????????????????????????????? | | ?????????????????????????????? | | ?????????????????????????????? | | ?????????????????????????????? | | ?????????????????????????????? | | ????????????????????????? ???? | | ??????????????????????### ##?? | | ?????????????????????# #?? | | ?????????????????????# #?? | | ?????????????????????# """ #?? | | ?????????????????????# """ #?? | | ?????????????????????# """ #?? | | ?????????????????????# #?? | | ?????????????????????# #?? | | ?????????????????????# [@ #?? | | ?????????????????????# =%ss#?? | | ?????????????????????# * #?? | | ?????????????????????# #?? | | ?????????????????????#######?? | | ?????????????????????????????? | | ?????????????????????????????? | | ?????????????????????????????? | | ?????????????????????????????? | | ?????????????????????????????? | | ?????????????????????????????? | | ?????????????????????????????? | | ?????????????????????????????? | | ?????????????????????????????? | | ?????????????????????????????? | | ?????????????????????????????? | | ?????????????????????????????? | | ?????????????????????????????? | | ?????????????????????????????? | | ?????????????????????????????? | | ?????????????????????????????? | | ?????????????????????????????? | | ?????????????????????????????? | | ?????????????????????????????? | | ?????????????????????????????? | +----------------------------------------------------+ Best States ------------- Heat Dissipation 25 Energy Generation 14 Energy Capacity 250 Matter Stores 300 Matter Capacity 300 Sight Range 16 Terrain Scan Density 10 Utility Shielding 33 Evasion (%) 44 Offensive Hacking 10 Item Schematics ----------------- None Robot Schematics ------------------ None Fabricated ------------ Nothing Alien Tech Used ----------------- None Achievements -------------- None Challenges ------------ None Game ------ Seed SubatomicBoreStabilizer Manual? 0 Play Time 00:12:32 Cumulative 16.7 hours Start 2020.10.29 @ 09:50:49 End 2020.10.29 @ 10:03:10 Sessions 1 Manual Loads 0 Difficulty Rogue Special Mode None Game No. 27 Rogue 27 Adventurer 0 Explorer 0 Win Type - Total 0 Types 0/0/0/0/0/0/0/0/0 Lore% 19 Gallery% 22 Achievement% 19 Wizard Run 0 Options --------- ASCII 0 Keyboard 0 Movement Mouse Keybinds 0 Fullscreen 2 Font 18/SmallcapsGlow Map View 76x50 Tactical HUD 1 Map Filters NONE Filters NONE Steam X RUN: ec4a4dab-e54b-4a6f-ae31-8364149fc110